bitfinex/quotes_SOLUSD_20250123
["timestamp","ask_amount","ask_price","bid_price","bid_amount"]
[1737599149588,23.776884,248.71,248.64,2.2943]
[1737599150090,20.0,248.68,248.56,8.6343]
[1737599150285,23.776884,248.63,248.54,2.2943]
[1737599151087,23.776884,248.59,248.54,2.2943]
[1737599151269,4.0228,248.58,248.54,2.2943]
[1737599151778,7.5,248.71,248.54,2.2943]
[1737599151779,4.0215,248.66,248.54,2.2943]
[1737599153366,4.0215,248.66,248.54,314.2943]
[1737599153800,4.0218,248.64,248.54,2.2943]
[1737599154195,23.776884,248.63,248.54,2.2943]
[1737599155877,23.776884,248.61,248.54,2.2943]
[1737599157600,4.0222,248.62,248.54,2.2943]
[1737599157805,2.0517,248.79,248.54,22.2943]
[1737599157806,10.56,248.74,248.54,22.2943]
[1737599157989,10.0519,248.71,248.56,20.0]
[1737599158487,10.0519,248.71,248.54,6.3177]
[1737599159999,23.776884,248.7,248.54,6.3177]
[1737599160205,23.776884,248.68,248.54,6.3177]
[1737599160391,23.776884,248.68,248.57,20.0]
[1737599160991,23.776884,248.66,248.54,2.2943]
[1737599161506,20.0,248.66,248.54,2.2943]
[1737599162305,23.776884,248.64,248.54,2.2943]
[1737599162995,4.0217,248.65,248.54,2.2943]
[1737599163314,14.0719,248.72,248.58,8.6343]
[1737599164002,23.776884,248.71,248.58,8.6343]
[1737599164319,23.776884,248.69,248.58,8.6343]
[1737599165603,23.776884,248.71,248.58,8.6343]
[1737599165807,37.849384,248.71,248.58,8.6343]
[1737599166315,20.0,248.64,248.58,8.6343]
[1737599166812,20.0,248.67,248.58,8.6343]
[1737599167000,23.776884,248.7,248.58,8.6343]
[1737599167610,23.776884,248.68,248.58,8.6343]
[1737599168716,4.0213,248.67,248.58,8.6343]
[1737599168919,23.776884,248.64,248.58,8.6343]
[1737599169290,23.776884,248.65,248.54,2.2943]
[1737599169619,20.0,248.59,248.54,2.2943]
[1737599169792,23.776884,248.58,248.54,2.2943]
[1737599170117,4.0213,248.67,248.54,2.2943]
[1737599170915,20.0,248.63,248.54,2.2943]
[1737599171215,23.776884,248.62,248.54,2.2943]
[1737599171701,10.053,248.68,248.54,2.2943]
[1737599171702,23.776884,248.63,248.54,2.2943]
[1737599173115,4.0222,248.62,248.54,2.2943]
[1737599175516,14.0777,248.62,248.54,2.2943]
[1737599177725,20.0,248.58,248.54,2.2943]
[1737599177903,23.776884,248.61,248.54,2.2943]
[1737599178104,20.0,248.58,248.51,9.1979]
[1737599178617,43.776884,248.58,248.51,9.1979]
[1737599178917,43.776884,248.49,248.37,9.1979]
[1737599179119,20.0,248.45,248.37,9.1979]
[1737599179298,23.776884,248.48,248.37,9.1979]
[1737599179499,5.56,248.53,248.37,9.1979]
[1737599179732,14.0833,248.52,248.37,9.1979]
[1737599180720,4.0238,248.52,248.4,20.0]
[1737599181124,4.0238,248.52,248.41,2.3346]
[1737599182219,14.0833,248.52,248.41,2.3346]
[1737599182726,23.776884,248.51,248.41,2.3346]
[1737599182922,20.0,248.48,248.41,2.3346]
[1737599183614,20.0,248.48,248.37,9.2609]
[1737599183918,20.0,248.43,248.37,9.2609]
[1737599184111,23.776884,248.42,248.37,9.2609]
[1737599184500,4.0246,248.47,248.37,9.2609]
[1737599184901,23.776884,248.46,248.37,9.2609]
[1737599186418,4.0249,248.45,248.37,9.2609]
[1737599188526,23.776884,248.44,248.37,9.2609]
[1737599189023,43.776884,248.38,248.37,0.0001]
[1737599190724,47.802884,248.38,248.37,0.0001]
[1737599191020,4.026,248.38,248.37,0.0001]
[1737599191615,4.0258,248.4,248.37,0.0001]
[1737599194547,5.56,248.41,248.37,0.0001]
[1737599196034,9.5856,248.41,248.37,0.0001]
[1737599196921,5.56,248.41,248.37,0.0001]
[1737599197242,4.0253,248.43,248.37,0.0001]
[1737599197933,20.0,248.49,248.37,0.0001]
[1737599198127,43.776884,248.48,248.37,0.0001]
[1737599199050,48.776884,248.48,248.37,0.0001]
[1737599199549,54.3236,248.51,248.37,0.0001]
[1737599199550,137.8,248.38,248.37,0.0001]
[1737599199725,137.8,248.38,248.23,9.3557]
[1737599199726,5.0,248.35,248.23,9.3557]
[1737599199922,5.56,248.35,248.23,9.3557]
[1737599200437,27.803684,248.33,248.23,9.3557]
[1737599201229,37.870884,248.33,248.23,9.3557]
[1737599201437,37.870884,248.33,248.17,8.9689]
[1737599201438,43.776884,248.26,248.17,8.9689]
[1737599201623,23.776884,248.21,248.16,0.063]
[1737599201817,23.776884,248.17,248.16,0.063]
[1737599202339,20.0,248.18,248.16,0.0001]
[1737599202542,4.0294,248.17,248.16,0.0001]
[1737599203042,27.806284,248.17,248.16,0.0001]
[1737599204417,4.0281,248.25,248.16,0.0001]
[1737599204618,10.0683,248.31,248.16,0.0001]
[1737599204824,4.0268,248.33,248.17,2.2333]
[1737599206045,23.776884,248.29,248.17,2.2333]
[1737599207035,4.0277,248.28,248.17,2.2333]
[1737599207736,4.0277,248.28,248.18,312.0]
[1737599208344,4.0277,248.28,248.17,2.2333]
[1737599208643,4.0268,248.33,248.17,26.2627]
[1737599209545,43.776884,248.3,248.17,2.2333]
[1737599210435,43.776884,248.3,248.17,6.2627]
[1737599210946,4.0268,248.33,248.2,20.0]
[1737599211250,10.0665,248.35,248.21,8.9689]
[1737599211451,10.0665,248.35,248.22,312.0]
[1737599211945,23.776884,248.34,248.22,312.0]
[1737599212333,4.0262,248.37,248.22,312.0]
[1737599212727,23.776884,248.35,248.22,312.0]
[1737599213127,23.776884,248.36,248.21,12.9976]
[1737599213331,4.0265,248.35,248.21,12.9976]
[1737599215647,4.0265,248.35,248.21,8.9689]
[1737599215948,20.0,248.32,248.21,8.9689]
[1737599216152,23.776884,248.31,248.21,8.9689]
[1737599217456,23.776884,248.29,248.21,8.9689]
[1737599218635,23.776884,248.31,248.21,8.9689]
[1737599218833,20.0,248.28,248.21,8.9689]
[1737599219129,23.776884,248.27,248.17,2.2333]
[1737599219730,23.776884,248.23,248.17,2.2333]
[1737599220145,4.0286,248.22,248.17,2.2333]
[1737599220345,4.0277,248.28,248.17,2.2333]
[1737599220531,4.0277,248.28,248.17,6.2627]
[1737599220739,4.0277,248.28,248.17,2.2333]
[1737599220946,23.776884,248.27,248.17,2.2333]
[1737599222129,23.776884,248.25,248.17,2.2333]
[1737599223159,23.776884,248.25,248.16,0.0001]
[1737599223862,23.776884,248.17,248.16,0.0001]
[1737599224038,27.806284,248.17,248.16,0.0001]
[1737599226365,5.56,248.21,248.16,0.0001]
[1737599227057,4.029,248.2,248.16,0.0001]
[1737599227234,5.56,248.21,248.16,0.0001]
[1737599228255,14.5289,248.33,248.16,0.0001]
[1737599228444,23.776884,248.32,248.16,0.0001]
[1737599228659,0.03,248.27,248.16,0.0001]
[1737599228964,0.03,248.27,248.17,8.8335]
[1737599229861,0.03,248.27,248.17,12.8628]
[1737599230569,0.03,248.27,248.17,8.8335]
[1737599230972,0.03,248.27,248.19,312.0]
[1737599231856,23.776884,248.26,248.19,312.0]
[1737599232064,23.776884,248.26,248.17,8.8335]
[1737599233063,4.0578,248.27,248.17,8.8335]
[1737599233857,23.776884,248.26,248.17,8.8335]
[1737599235875,14.0985,248.25,248.17,8.8335]
[1737599237684,10.0704,248.25,248.17,8.8335]
[1737599239362,4.0283,248.25,248.17,8.8335]
[1737599239668,23.776884,248.24,248.17,8.8335]
[1737599241355,23.806884,248.25,248.17,8.8335]
[1737599241573,4.0285,248.23,248.17,8.8335]
[1737599242362,4.0285,248.23,248.17,320.8335]
[1737599243062,4.0285,248.23,248.17,8.8335]
[1737599243375,0.03,248.25,248.19,4.0291]
[1737599244156,0.03,248.25,248.18,2.2931]
[1737599249366,0.03,248.25,248.18,314.2931]
[1737599250252,0.03,248.25,248.18,2.2931]
[1737599251864,23.806884,248.25,248.18,2.2931]
[1737599252677,23.806884,248.25,248.16,0.0001]
[1737599254183,4.0283,248.24,248.16,0.0001]
[1737599255257,0.03,248.25,248.16,0.0001]
[1737599255663,0.03,248.25,248.17,2.2931]
[1737599257381,0.03,248.25,248.18,12.8763]
[1737599257566,0.03,248.25,248.21,20.0]
[1737599257766,0.03,248.25,248.18,332.3763]
[1737599257968,0.03,248.25,248.21,20.0]
[1737599258173,0.03,248.27,248.24,2.2745]
[1737599258372,0.03,248.35,248.25,8.847]
[1737599259387,0.03,248.35,248.26,4.028]
[1737599260185,0.03,248.35,248.25,8.847]
[1737599262478,23.776884,248.34,248.25,8.847]
[1737599263788,23.776884,248.32,248.25,8.847]
[1737599264689,4.0267,248.34,248.25,8.847]
[1737599264874,23.776884,248.24,248.11,8.847]
[1737599265065,20.0,248.16,248.05,8.847]
[1737599265266,20.0,248.12,248.05,8.847]
[1737599265473,23.776884,248.11,248.02,0.063]
[1737599266202,23.776884,248.05,248.02,0.063]
[1737599266768,4.0316,248.04,248.02,0.063]
[1737599267903,23.776884,248.03,248.02,0.063]
[1737599268273,4.0316,248.04,248.02,0.063]
[1737599269509,23.776884,248.03,248.02,0.063]
[1737599270183,4.0316,248.04,248.02,0.063]
[1737599271011,23.776884,248.03,248.02,0.063]
[1737599271714,4.0319,248.02,247.94,0.063]
[1737599272582,10.0769,248.1,247.94,0.063]
[1737599272789,4.0307,248.09,248.0,8.91]
[1737599272997,23.776884,248.08,248.0,8.91]
[1737599273902,23.776884,248.06,248.0,8.91]
[1737599275208,14.1076,248.09,248.0,8.91]
[1737599275517,20.0,248.06,248.0,0.063]
[1737599277420,23.776884,248.04,248.0,0.063]
[1737599280518,4.0317,248.03,248.0,0.063]
[1737599282118,23.776884,248.02,248.0,0.063]
[1737599282304,4.0317,248.03,248.0,0.063]
[1737599282499,4.0312,248.06,248.0,0.063]
[1737599282900,18.9231,248.11,248.0,0.063]
[1737599282901,4.0306,248.1,248.0,0.063]
[1737599283419,4.0306,248.1,248.01,2.1842]
[1737599283720,4.0306,248.1,248.02,8.9585]
[1737599285416,23.776884,248.09,248.02,8.9585]
[1737599285725,4.0306,248.1,248.02,8.9585]
[1737599287106,4.0604,248.12,248.02,8.9585]
[1737599288919,0.03,248.1,248.02,8.9585]
[1737599293030,0.03,248.1,248.02,12.9903]
[1737599293223,0.03,248.1,248.02,8.9585]
[1737599301110,0.03,248.1,248.02,9.0215]
[1737599309335,0.03,248.1,248.03,0.60473843]
[1737599309722,0.03,248.1,248.02,13.0534]
[1737599312130,0.03,248.1,248.04,312.0]
[1737599312328,0.03,248.1,248.04,316.0314]
[1737599313436,0.03,248.1,248.07,24.031]
[1737599313939,0.03,248.1,248.07,4.031]
[1737599315724,0.03,248.1,248.04,0.60448061]
[1737599315925,0.03,248.1,248.03,4.0317]
[1737599316221,0.03,248.1,248.05,20.0]
[1737599316418,0.03,248.1,248.05,332.0]
[1737599317151,0.03,248.1,248.06,4.0312]
[1737599317335,0.03,248.12,248.07,10.8074]
[1737599319831,0.03,248.12,248.07,14.8384]
[1737599322269,0.03,248.12,248.07,34.8384]
[1737599322746,0.03,248.12,248.11,20.0]
[1737599322952,0.03,248.12,248.07,14.8384]
[1737599323326,0.03,248.12,248.07,10.8074]
[1737599324035,0.03,248.12,248.07,8.5734]
[1737599324235,0.03,248.12,248.02,0.063]
[1737599326067,0.03,248.12,248.02,4.0948]
[1737599326561,0.03,248.12,248.02,9.09478874]
[1737599327369,0.03,248.12,248.02,16.59478874]
[1737599327661,0.03,248.12,248.06,4.0312]
[1737599328062,0.03,248.12,248.02,4.0948]
[1737599328452,0.03,248.12,248.02,0.063]
[1737599330271,0.03,248.12,248.02,4.0949]
[1737599330571,0.03,248.12,248.04,20.0]
[1737599331776,0.03,248.12,248.06,20.0]
[1737599332675,0.03,248.12,248.05,20.0]
[1737599333181,0.03,248.12,248.05,332.0]
[1737599333968,0.03,248.12,248.06,4.0312]
[1737599335582,0.03,248.12,248.05,20.0]
[1737599335757,0.03,248.12,248.05,24.0314]
[1737599336079,0.03,248.12,248.05,4.0314]
[1737599336267,0.03,248.12,248.05,24.0314]
[1737599336779,0.03,248.12,248.05,4.0314]
[1737599336978,0.03,248.12,248.05,316.0314]
[1737599337158,0.03,248.12,248.04,20.0]
[1737599337553,0.03,248.12,248.05,20.0]
[1737599337771,0.03,248.12,248.02,5.06298874]
[1737599337772,0.03,248.12,248.02,4.0948]
[1737599340279,0.03,248.12,248.02,316.0948]
[1737599343685,0.03,248.12,248.06,4.0312]
[1737599343991,0.03,248.12,248.07,0.60445413]
[1737599344162,0.03,248.12,248.06,24.0312]
[1737599344765,0.03,248.12,248.06,4.0312]
[1737599346782,0.03,248.12,248.06,316.0312]
[1737599347287,0.03,248.12,248.06,4.0312]
[1737599347480,0.03,248.12,248.05,24.0313]
[1737599351373,0.03,248.12,248.05,4.0313]
[1737599352303,0.03,248.12,248.05,20.0]
[1737599354306,0.03,248.12,248.03,0.60453281]
[1737599354482,137.83,248.12,248.02,312.063]
[1737599354882,1.611139,248.11,248.02,312.063]
[1737599356393,4.0306,248.1,248.02,312.063]
[1737599356882,4.0306,248.1,248.02,0.063]
[1737599359391,20.0,248.07,248.02,0.063]
[1737599359692,4.0312,248.07,248.02,0.063]
[1737599360883,4.0307,248.09,248.02,0.063]
[1737599362876,141.8307,248.09,248.02,0.063]
[1737599364898,10.0782,248.06,248.02,0.063]
[1737599365278,4.0309,248.08,248.02,0.063]
[1737599367683,4.00224739,248.08,248.02,0.063]
[1737599369009,141.8308,248.09,248.02,0.063]
[1737599369318,4.0308,248.09,248.02,0.063]
[1737599369681,4.0605,248.11,248.02,0.063]
[1737599370103,4.0605,248.11,248.04,312.0]
[1737599370778,0.03,248.11,248.04,312.0]
[1737599371105,0.03,248.11,248.05,20.0]
[1737599372194,0.03,248.11,248.02,10.9756]
[1737599372410,0.03,248.11,248.02,0.063]
[1737599373487,137.8,248.1,248.02,0.063]
[1737599374707,4.0307,248.09,248.02,0.063]
[1737599376812,14.1369,248.11,248.02,0.063]
[1737599377313,4.0604,248.11,248.02,0.063]
[1737599377522,4.0604,248.11,248.02,4.0949]
[1737599377696,4.0604,248.11,248.02,316.0949]
[1737599378604,0.03,248.11,248.02,316.0949]
[1737599379104,0.03,248.11,248.02,312.063]
[1737599379910,0.03,248.11,248.02,4.0949]
[1737599380114,0.03,248.11,248.02,24.0949]
[1737599381194,0.03,248.11,248.02,4.0949]
[1737599382122,0.03,248.11,248.03,0.60457634]
[1737599382327,0.03,248.11,248.05,20.0]
[1737599382903,0.03,248.11,248.07,312.0]
[1737599384629,0.03,248.11,248.07,316.0309]
[1737599384834,0.03,248.11,248.07,4.0309]
[1737599385519,0.03,248.11,248.07,4.63534582]
[1737599386123,0.03,248.11,248.1,20.0]
[1737599387801,0.03,248.11,248.1,332.0]
[1737599391827,5.03,248.11,248.1,332.0]
[1737599394113,10.03,248.11,248.1,332.0]
[1737599396507,10.03,248.11,248.08,0.063]
[1737599396712,14.0605,248.11,248.08,0.063]
[1737599398339,23.776884,248.1,248.08,0.063]
[1737599398516,137.8,248.09,248.08,0.063]
[1737599398920,137.8,248.08,248.05,0.063]
[1737599399429,23.776884,248.07,248.05,0.063]
[1737599400713,4.0312,248.06,248.05,0.063]
[1737599400908,27.808084,248.06,248.05,0.063]
[1737599401134,23.776884,248.03,248.0,0.063]
[1737599401439,43.776884,248.03,248.0,0.063]
[1737599402132,47.808584,248.03,248.0,0.063]
[1737599403537,4.0317,248.03,248.0,0.063]
[1737599404242,23.776884,248.04,248.0,0.063]
[1737599405134,161.576884,248.03,248.0,0.063]
[1737599405347,161.576884,248.02,248.0,0.063]
[1737599406235,27.808884,248.01,248.0,0.063]
[1737599407633,4.032,248.01,248.0,0.063]
[1737599407947,141.832,248.02,248.0,0.063]
[1737599408236,20.0,248.01,248.0,0.0001]
[1737599408439,4.032,248.02,248.0,0.0001]
[1737599408631,181.576884,248.01,248.0,0.0001]
[1737599408941,161.576884,248.0,247.94,0.063]
[1737599409158,23.776884,247.98,247.94,0.063]
[1737599409641,24.765584,247.98,247.94,0.063]
[1737599409837,161.576884,247.95,247.94,0.063]
[1737599410357,161.576884,247.95,247.92,0.0001]
[1737599410358,161.576884,247.94,247.92,0.0001]
[1737599411638,137.8,247.93,247.92,0.0001]
[1737599413143,161.576884,247.93,247.92,0.0001]
[1737599413343,23.776884,247.93,247.92,0.0001]
[1737599414855,37.894184,247.92,247.8,0.063]
[1737599415060,23.776884,247.9,247.8,0.063]
[1737599415243,23.776884,247.88,247.8,0.063]
[1737599416338,23.776884,247.86,247.8,0.063]
[1737599418758,27.811084,247.88,247.8,0.063]
[1737599419132,37.896584,247.88,247.8,0.063]
[1737599420145,23.776884,247.86,247.8,0.063]
[1737599421265,23.776884,247.84,247.8,0.063]
[1737599421956,137.8,247.81,247.8,0.063]
[1737599423661,141.8352,247.82,247.8,0.063]
[1737599425263,23.776884,247.81,247.8,0.063]
[1737599426258,137.8,247.84,247.8,0.063]
[1737599426462,141.8349,247.84,247.8,0.063]
[1737599427460,27.811884,247.83,247.8,0.063]
[1737599430948,137.8,247.82,247.8,0.063]
[1737599435071,11.5032,247.87,247.81,4.0353]
[1737599435372,0.03,247.88,247.82,11.0411]
[1737599435555,0.03,247.88,247.86,20.0]
[1737599436251,0.03,247.88,247.83,5.6050983]
[1737599436453,0.03,247.88,247.86,20.0]
[1737599436859,0.03,247.88,247.87,24.0343]
[1737599437270,0.03,247.88,247.83,4.035]
[1737599437471,0.03,247.88,247.82,11.0411]
[1737599438056,0.03,247.88,247.86,312.0]
[1737599438457,0.03,248.05,247.93,20.0]
[1737599438667,0.03,248.05,247.93,25.60477023]
[1737599438946,0.03,248.05,247.97,20.0]
[1737599439353,0.03,248.05,247.98,0.60473126]
[1737599439558,0.03,248.05,247.99,20.0]
[1737599439769,137.83,248.11,247.99,20.0]
[1737599439770,0.03,248.11,248.03,20.0]
[1737599439963,1.64468011,248.25,248.12,4.99998874]
[1737599440155,137.8,248.25,248.09,11.0652]
[1737599440361,137.8,248.23,248.09,11.0652]
[1737599440561,20.0,248.2,248.09,11.0652]
[1737599440778,137.8,248.22,248.09,11.0652]
[1737599441271,137.8,248.21,248.09,11.0652]
[1737599441664,23.776884,248.2,248.09,11.0652]
[1737599441875,5.46,248.27,248.1,0.60459136]
[1737599441876,137.8,248.25,248.1,0.60459136]
[1737599442373,137.8,248.28,248.1,0.60459136]
[1737599442559,137.8,248.24,248.09,11.0652]
[1737599442766,16.065189,248.27,248.1,0.60445742]
[1737599442959,0.03,248.3,248.22,2.2258]
[1737599443167,0.03,248.3,248.26,20.0]
[1737599443379,0.03,248.3,248.27,0.60398131]
[1737599443775,0.03,248.3,248.27,20.60398131]
[1737599444083,0.03,248.3,248.27,0.60398131]
[1737599444259,0.03,248.35,248.27,13.10397005]
[1737599444454,0.03,248.35,248.29,4.99998874]
[1737599444654,0.03,248.35,248.32,312.0]
[1737599444855,0.03,248.35,248.33,0.60381704]
[1737599445072,0.03,248.35,248.32,312.0]
[1737599445272,0.03,248.36,248.3,8.8394]
[1737599445273,0.03,248.36,248.33,20.0]
[1737599445474,1.638961,248.52,248.33,20.0]
[1737599445475,4.0539,248.52,248.36,2.2258]
[1737599445655,0.03,248.52,248.37,0.60366034]
[1737599445857,0.03,248.52,248.38,4.99998874]
[1737599446057,0.03,248.52,248.39,0.6036108]
[1737599446579,23.776884,248.51,248.36,2.82941828]
[1737599446771,27.800984,248.51,248.36,2.82941828]
[1737599448276,27.800984,248.51,248.4,312.0]
[1737599448462,27.800984,248.51,248.36,2.2258]
[1737599448660,27.800984,248.51,248.36,2.82951537]
[1737599449058,27.800984,248.51,248.36,2.2258]
[1737599449380,27.800984,248.51,248.39,312.0]
[1737599449563,23.776884,248.47,248.39,312.0]
[1737599449881,23.776884,248.47,248.36,2.2258]
[1737599450061,23.776884,248.43,248.3,8.8394]
[1737599450383,23.776884,248.4,248.3,8.8394]
[1737599451077,137.8,248.43,248.3,8.8394]
[1737599451282,27.802284,248.42,248.3,8.8394]
[1737599451480,23.776884,248.38,248.3,8.8394]
[1737599451983,23.776884,248.41,248.3,8.8394]
[1737599452785,23.776884,248.39,248.3,8.8394]
[1737599453076,181.576884,248.35,248.23,8.8394]
[1737599453284,137.8,248.34,248.23,8.8394]
[1737599453494,23.776884,248.33,248.23,8.8394]
[1737599454971,20.126,248.44,248.23,8.8394]
[1737599454972,141.826,248.39,248.26,20.0]
[1737599455372,23.776884,248.38,248.26,20.0]
[1737599456088,4.0262,248.37,248.26,332.0]
[1737599456597,23.776884,248.36,248.26,332.0]
[1737599456771,23.776884,248.36,248.23,8.9024]
[1737599457575,23.776884,248.32,248.23,8.9024]
[1737599458784,137.8,248.29,248.23,8.9024]
[1737599458985,23.776884,248.28,248.23,8.9024]
[1737599460189,23.776884,248.26,248.23,0.063]
[1737599462082,137.8,248.29,248.23,0.063]
[1737599462282,4.0268,248.33,248.23,0.063]
[1737599462481,23.776884,248.32,248.23,0.063]
[1737599463574,137.8,248.29,248.23,0.063]
[1737599463887,23.776884,248.27,248.23,0.063]
[1737599464389,23.776884,248.25,248.23,0.063]
[1737599465089,4.0272,248.31,248.23,0.063]
[1737599465285,137.8,248.32,248.23,20.063]
[1737599465596,23.776884,248.31,248.23,20.063]
[1737599465794,10.0641,248.41,248.24,20.60409065]
[1737599465993,4.0257,248.4,248.3,20.0]
[1737599466406,137.8,248.41,248.32,2.2408]
[1737599466702,4.0256,248.41,248.33,312.0]
[1737599467079,4.0244,248.48,248.34,0.60386726]
[1737599467275,4.0244,248.48,248.32,2.2408]
[1737599467899,0.03,248.4,248.33,0.60378811]
[1737599468306,0.03,248.4,248.32,2.2408]
[1737599469014,0.03,248.4,248.35,20.0]
[1737599469997,0.03,248.4,248.36,0.60379576]
[1737599470214,0.03,248.4,248.37,312.0]
[1737599470419,0.03,248.4,248.39,20.0]
[1737599470593,0.03,248.4,248.37,312.0]
[1737599470997,0.03,248.4,248.32,2.2408]
[1737599472005,0.03,248.4,248.32,22.2408]
[1737599472407,0.03,248.4,248.33,4.63067489]
[1737599472610,0.03,248.4,248.34,20.0]
[1737599473318,0.03,248.4,248.32,22.2408]
[1737599473998,0.03,248.4,248.32,334.2408]
[1737599474396,0.03,248.4,248.32,2.2408]
[1737599474397,23.806884,248.4,248.32,2.2408]
[1737599475915,23.776884,248.38,248.32,2.2408]
[1737599478015,0.03,248.4,248.32,2.2408]
[1737599478016,23.776884,248.36,248.32,2.2408]
[1737599478614,4.0262,248.37,248.32,2.2408]
[1737599479091,23.776884,248.36,248.26,10.9549]
[1737599479688,23.776884,248.36,248.26,14.9829]
[1737599480106,4.0264,248.36,248.26,14.9829]
[1737599480506,4.0264,248.36,248.29,20.0]
[1737599482494,141.8262,248.38,248.29,20.0]
[1737599482695,23.776884,248.37,248.29,20.0]
[1737599484302,4.0259,248.39,248.29,24.0274]
[1737599484508,0.03,248.4,248.29,24.0274]
[1737599485019,0.03,248.4,248.29,24.63129792]
[1737599485221,0.03,248.4,248.29,24.0274]
[1737599485605,23.806884,248.4,248.31,312.0]
[1737599485804,23.806884,248.4,248.29,20.0]
[1737599487614,23.776884,248.38,248.29,20.0]
[1737599488305,23.776884,248.38,248.26,4.0909]
[1737599488507,23.776884,248.38,248.27,20.60399571]
[1737599488805,4.0259,248.39,248.33,20.0]
[1737599489809,28.776884,248.38,248.28,11.2905]
[1737599490223,28.776884,248.38,248.31,20.0]
[1737599490815,28.776884,248.38,248.28,11.2905]
[1737599491409,33.776884,248.38,248.28,11.2905]
[1737599491817,4.0262,248.37,248.28,11.2905]
[1737599492015,23.776884,248.36,248.28,11.2905]
[1737599493127,4.0262,248.37,248.28,11.3535]
[1737599493333,15.0,248.38,248.31,20.0]
[1737599493834,15.0,248.38,248.32,4.027]
[1737599494427,15.0,248.38,248.32,24.027]
[1737599494624,15.0,248.38,248.33,0.60383326]
[1737599494813,15.0,248.38,248.34,20.0]
[1737599495744,15.0,248.38,248.33,0.60383326]
[1737599496025,15.0,248.38,248.34,4.0267]
[1737599496233,15.0,248.38,248.37,20.0]
[1737599496825,15.0,248.38,248.34,4.0267]
[1737599497837,15.0,248.38,248.33,0.60382194]
[1737599498027,23.776884,248.37,248.28,11.3535]
[1737599499032,15.0,248.38,248.28,15.98507894]
[1737599499549,15.0,248.38,248.31,20.0]
[1737599499836,165.603084,248.37,248.28,0.063]
[1737599500050,175.668684,248.37,248.28,0.063]
[1737599500252,165.603084,248.37,248.28,0.063]
[1737599502836,165.603084,248.37,248.29,20.0]
[1737599503023,165.603084,248.37,248.28,0.063]
[1737599503226,175.668684,248.37,248.28,0.063]
[1737599504925,37.868684,248.37,248.28,0.063]
[1737599505318,137.8,248.31,248.28,0.063]
[1737599505642,23.776884,248.3,248.28,0.063]
[1737599506141,43.776884,248.27,248.26,0.0001]
[1737599506321,23.776884,248.26,248.23,0.0001]
[1737599506518,23.776884,248.29,248.23,0.0001]
[1737599506722,20.0,248.26,248.23,0.0001]
[1737599506921,23.776884,248.24,248.23,0.0001]
[1737599508338,20.0,248.21,248.04,10.9317]
[1737599508544,23.776884,248.16,248.04,10.9317]
[1737599508932,23.776884,248.14,248.04,10.9317]
[1737599509350,23.776884,248.14,248.06,312.0]